fUST/lending_fUST_20250805
["ID","MTS","AMOUNT","RATE_DAILY","PERIOD"]
[377292761,1754323221765,211.612562,0.00029962,2]
[377292762,1754323225322,200.0,0.000294,120]
[377292763,1754323226159,150.0,0.00026575,30]
[377292764,1754323226555,150.0,0.00026489,30]
[377292765,1754323230629,200.0,0.000294,120]
[377292766,1754323234822,200.0,0.000294,120]
[377292767,1754323277268,153.980537,0.00029694,20]
[377292768,1754323287791,160.0,0.0002,3]
[377292769,1754323288199,160.0,0.0003,10]
[377292770,1754323289045,160.0,0.0002,3]
[377292771,1754323289081,175.68,0.000288,2]
[377292772,1754323289617,160.0,0.0003,10]
[377292773,1754323292723,174.65153908,0.000301,120]
[377292774,1754323300065,732.53287191,0.00029962,2]
[377292775,1754323312613,423.0,0.0003,7]
[377292777,1754323411574,200.0,0.00029581,120]
[377292778,1754323463228,212.4833036,0.00029962,2]
[377292779,1754323466456,1372.2915621,0.0003,7]
[377292780,1754323475786,618.58478995,0.00028172,2]
[377292781,1754323476287,24900.0,0.00029962,2]
[377292782,1754323489795,160.0,0.0003,30]
[377292783,1754323501850,160.0,0.0003,29]
[377292792,1754323542033,150.0,0.00026575,30]
[377292793,1754323542463,150.0,0.00026489,30]
[377292794,1754323546877,160.0,0.0003,2]
[377292795,1754323549380,160.0,0.0003,3]
[377292796,1754323552506,160.0,0.0003,4]
[377292797,1754323570739,160.0,0.0003,27]
[377292798,1754323570775,5000.0,0.0003,2]
[377292799,1754323579048,5000.0,0.0003,2]
[377292800,1754323587459,5000.0,0.0003,2]
[377292801,1754323589050,199.25583447,0.0002994,2]
[377292802,1754323589902,160.0,0.0003,28]
[377292803,1754323592094,740.51214559,0.0002996,2]
[377292804,1754323593019,160.0,0.0002,3]
[377292805,1754323593548,160.0,0.0003,10]
[377292806,1754323594858,160.0,0.0002,3]
[377292807,1754323595745,253.98845444,0.0003,2]
[377292808,1754323605937,3187.71975804,0.00029952,2]
[377292809,1754323606904,5000.0,0.0003,2]
[377292810,1754323614106,163.0,0.0003,24]
[377292811,1754323621782,150.0,0.0002602,2]
[377292812,1754323625553,5000.0,0.0003,2]
[377292813,1754323630217,356.33026439,0.00029954,2]
[377292814,1754323630587,356.33026439,0.00029955,2]
[377292815,1754323630944,356.33026439,0.00029957,2]
[377292816,1754323631306,356.33026439,0.00029958,2]
[377292817,1754323631634,356.33026439,0.00029959,2]
[377292818,1754323645471,164.0,0.0003,34]
[377292819,1754323682533,9769.028391,0.00029962,2]
[377292820,1754323750397,176.356009,0.00029049,2]
[377292821,1754323762535,1339.53,0.00029962,30]
[377292824,1754323769968,257.0190579,0.00029962,2]
[377292825,1754323779812,1074.34316804,0.000279,2]
[377292826,1754323802364,164.324996,0.00013699,2]
[377292827,1754323802604,164.324996,0.00021918,2]
[377292828,1754323803894,169.98664288,0.00029963,2]
[377292831,1754323813541,385.769849,0.00025778,2]
[377292832,1754323813926,385.769849,0.00026044,2]
[377292833,1754323814406,256.4515161,0.0002915,2]
[377292834,1754323823287,666.0,0.00029962,2]
[377292840,1754323825263,461.05335821,0.00027,3]
[377292841,1754323828073,186.49999981,0.0003,7]
[377292852,1754323832975,1190.69,0.00029962,30]
[377292858,1754323833039,-169.98664287,0.00030015,2]
[377292859,1754323833049,-1600.0,0.00030052,2]
[377292860,1754323833060,-324.55,0.00030052,10]
[377292861,1754323833070,-270.46,0.00030052,10]
[377292863,1754323833081,-634.96,0.00030053,3]
[377292864,1754323833091,-317.48,0.00030053,3]
[377292865,1754323833101,-158.74,0.00030053,3]
[377292866,1754323833111,-476.22,0.00030053,3]
[377292867,1754323833122,-215.83590458,0.00030054,2]
[377292868,1754323833133,-202.80841386,0.00030054,2]
[377292869,1754323833142,-400.0,0.00030054,2]
[377292870,1754323833152,-400.0,0.00030054,2]
[377292871,1754323833162,-400.0,0.00030054,2]
[377292872,1754323833172,-453.9189198,0.00030055,2]
[377292873,1754323838698,-225.38,0.00030053,10]
[377292874,1754323838709,-48.34326969,0.00030055,2]
[377292875,1754323838719,-218.38092351,0.00030055,2]
[377292876,1754323838728,-157.90400966,0.00030055,2]
[377292877,1754323838738,-332.62870183,0.00030055,2]
[377292878,1754323838748,-500.0,0.00030055,2]
[377292879,1754323838759,-500.0,0.00030055,2]
[377292880,1754323838768,-500.0,0.00030055,2]
[377292881,1754323838777,-500.0,0.00030055,2]
[377292882,1754323838787,-500.0,0.00030055,2]
[377292883,1754323838797,-500.0,0.00030055,2]
[377292884,1754323838806,-645.45166525,0.00030055,2]
[377292885,1754323838816,-500.0,0.00030055,2]
[377292886,1754323838825,-500.0,0.00030055,2]
[377292887,1754323838835,-500.0,0.00030055,2]
[377292888,1754323838844,-500.0,0.00030055,2]
[377292889,1754323838853,-291.41980524,0.00030055,2]
[377292890,1754323838863,-500.0,0.00030055,2]
[377292891,1754323838872,-500.0,0.00030055,2]
[377292892,1754323838882,-500.0,0.00030055,2]
[377292893,1754323838891,-500.0,0.00030055,2]
[377292894,1754323838901,-500.0,0.00030055,2]
[377292895,1754323838911,-500.0,0.00030055,2]
[377292896,1754323838920,-500.0,0.00030055,2]
[377292897,1754323838930,-500.0,0.00030055,2]
[377292898,1754323838939,-500.0,0.00030055,2]
[377292899,1754323838949,-500.0,0.00030055,2]
[377292900,1754323838959,-500.0,0.00030055,2]
[377292901,1754323838969,-500.0,0.00030055,2]
[377292902,1754323838978,-500.0,0.00030055,2]
[377292903,1754323838988,-500.0,0.00030055,2]
[377292904,1754323838998,-200.0,0.00030055,2]
[377292905,1754323839008,-500.0,0.00030055,2]
[377292906,1754323839018,-160.0,0.00030055,2]
[377292907,1754323839027,-1600.0,0.00030056,2]
[377292908,1754323839038,-275.44,0.0003006,7]
[377292909,1754323839047,-161.651,0.0003006,25]
[377292910,1754323839057,-412.39581407,0.00030061,2]
[377292911,1754323839067,-72724.3904724,0.00030062,2]
[377292912,1754323839076,-72724.3904724,0.00030063,2]
[377292913,1754323839086,-169.98664287,0.00030067,2]
[377292914,1754323839095,-1883.54062652,0.00030072,2]
[377292915,1754323839106,-52744.23242571,0.00030072,2]
[377292916,1754323839115,-500.0,0.00030073,5]
[377292917,1754323839125,-500.0,0.00030073,5]
[377292918,1754323839134,-500.0,0.00030073,5]
[377292919,1754323839144,-500.0,0.00030073,5]
[377292920,1754323839154,-386.70575567,0.00030073,5]
[377292921,1754323839163,-549.5844987,0.00030073,5]
[377292922,1754323839173,-500.01772604,0.00030073,5]
[377292923,1754323839183,-500.0,0.00030073,5]
[377292924,1754323839192,-500.0,0.00030073,5]
[377292925,1754323839202,-502.28091123,0.00030073,5]
[377292926,1754323839212,-500.0,0.00030073,5]
[377292927,1754323839222,-500.0,0.00030073,5]
[377292928,1754323839232,-503.14242823,0.00030073,5]
[377292929,1754323839242,-500.0,0.00030073,2]
[377292930,1754323839252,-500.0,0.00030073,5]
[377292931,1754323839262,-161.44810656,0.00030073,5]
[377292932,1754323839272,-500.0,0.00030073,5]
[377292933,1754323839282,-500.0,0.00030073,5]
[377292934,1754323839291,-396.95393897,0.00030073,5]
[377292935,1754323839301,-471.70043634,0.00030073,5]
[377292936,1754323839314,-500.0,0.00030073,5]
[377292937,1754323839324,-800.0,0.00030083,2]
[377292938,1754323839334,-184.2023575,0.000301,2]
[377292939,1754323839343,-184.20235749,0.000301,2]
[377292940,1754323839354,-184.20235749,0.000301,2]
[377292941,1754323839364,-169.98664287,0.00030119,2]
[377292942,1754323839373,-164.324996,0.00030137,2]
[377292943,1754323839386,-428.4418273,0.00030137,120]
[377292944,1754323839396,-1190.69,0.00030137,30]
[377292945,1754323839406,-14395.95852202,0.00030144,2]
[377292946,1754323839415,-169.98664287,0.00030171,2]
[377292947,1754323839425,-500.0,0.00030173,5]
[377292948,1754323839434,-150.0,0.00030173,5]
[377292949,1754323839444,-500.0,0.00030173,5]
[377292950,1754323839453,-502.48038745,0.00030173,5]
[377292951,1754323839463,-500.0,0.00030173,5]
[377292952,1754323839473,-504.49301008,0.00030173,5]
[377292953,1754323839482,-500.65338569,0.00030173,5]
[377292954,1754323839491,-501.05777975,0.00030173,5]
[377292955,1754323839502,-501.66944274,0.00030173,5]
[377292956,1754323839511,-2000.0,0.00030173,2]
[377292957,1754323839520,-2000.0,0.00030173,2]
[377292958,1754323839530,-2000.0,0.00030173,2]
[377292959,1754323839540,-2000.0,0.00030173,2]
[377292960,1754323839550,-1990.416,0.00030173,2]
[377292961,1754323839559,-460.0,0.00030173,2]
[377292962,1754323839568,-471.0,0.000302,120]
[377292963,1754323839578,-1045.01880871,0.00030244,2]
[377292964,1754323839587,-1000.0,0.00030264,2]
[377292965,1754323839598,-1000.0,0.00030264,2]
[377292966,1754323839608,-1000.0,0.00030264,2]
[377292967,1754323839618,-593.1070642,0.00030264,2]
[377292968,1754323839628,-1018812.06549717,0.00030271,20]
[377292969,1754323839638,-600.12587412,0.00030271,5]
[377292970,1754323839648,-33027.90564752,0.00030271,7]
[377292971,1754323839657,-1589.0,0.00030271,3]
[377292972,1754323839667,-11064.7477987,0.00030271,7]
[377292973,1754323839677,-1780.97771768,0.00030271,3]
[377292974,1754323839687,-6507.02245374,0.00030271,2]
[377292975,1754323839697,-439.67507032,0.00030271,2]
[377292976,1754323839706,-3676.9952824,0.00030271,2]
[377292977,1754323839715,-10646.23595603,0.00030271,2]
[377292978,1754323839726,-648.86598571,0.00030271,2]
[377292979,1754323839735,-2920.0,0.00030271,2]
[377292980,1754323839744,-383.50640859,0.00030271,2]
[377292981,1754323839753,-200.73767632,0.00030271,2]
[377292982,1754323839762,-3136.11205484,0.00030271,2]
[377292983,1754323839771,-383.0,0.00030272,120]
[377292984,1754323839781,-500.9714425,0.00030273,5]
[377292985,1754323839791,-500.0,0.00030273,5]
[377292986,1754323839801,-235.79192868,0.00030273,5]
[377292987,1754323839810,-500.0,0.00030273,5]
[377292988,1754323839820,-500.0,0.00030273,5]
[377292989,1754323839830,-500.0,0.00030273,5]
[377292990,1754323839840,-500.0,0.00030273,5]
[377292991,1754323839849,-500.0,0.00030273,5]
[377292992,1754323839859,-500.0,0.00030273,5]
[377292993,1754323839868,-500.0,0.00030273,5]
[377292994,1754323839877,-500.0,0.00030273,5]
[377292995,1754323839887,-500.0,0.00030273,5]
[377292996,1754323839897,-500.0,0.00030273,5]
[377292997,1754323839907,-502.41549582,0.00030273,5]
[377292998,1754323839917,-500.0,0.00030273,5]
[377292999,1754323839926,-501.14588284,0.00030273,5]
[377293000,1754323839936,-600.48591849,0.00030273,5]
[377293001,1754323839946,-500.0,0.00030273,5]
[377293002,1754323839956,-501.35320571,0.00030273,5]
[377293003,1754323839965,-500.0,0.00030273,5]
[377293004,1754323839975,-500.0,0.00030273,5]
[377293005,1754323839984,-500.0,0.00030273,2]
[377293006,1754323839994,-500.0,0.00030273,5]
[377293007,1754323840004,-500.0,0.00030273,5]
[377293008,1754323840013,-500.0,0.00030273,5]
[377293009,1754323840028,-231.67098287,0.00030274,7]
[377293010,1754323840043,-160.0,0.00030274,7]
[377293011,1754323840053,-160.0,0.00030274,7]
[377293012,1754323840063,-461.05335821,0.00030274,7]
[377293013,1754323840073,-151.0,0.000303,19]
[377293014,1754323840082,-153.980537,0.00030332,20]
[377293015,1754323840091,-72724.3904724,0.00030354,2]
[377293016,1754323840101,-2000.0,0.00030364,2]
[377293017,1754323840111,-188.45,0.00030364,2]
[377293018,1754323840122,-215.679,0.00030364,2]
[377293019,1754323840132,-1190.69,0.00030424,30]
[377293020,1754323840142,-1615.02821195,0.00030429,120]
[377293021,1754323840152,-259.50446296,0.00030621,5]
[377293022,1754323840162,-501.60499278,0.00030621,5]
[377293023,1754323840173,-1000.0,0.00030621,5]
[377293024,1754323840182,-500.0,0.00030621,5]
[377293025,1754323840192,-1000.0,0.00030621,5]
[377293026,1754323840202,-500.0,0.00030621,5]
[377293027,1754323840212,-1000.0,0.00030621,5]
[377293028,1754323840223,-260.54668281,0.0003063,2]
[377293029,1754323840233,-1190.69,0.00030655,30]
[377293030,1754323840243,-250.0,0.00030721,5]
[377293031,1754323840253,-1000.0,0.00030721,5]
[377293032,1754323840263,-440.78819134,0.00030759,2]
[377293033,1754323840273,-1763.15276537,0.00030759,2]
[377293034,1754323840284,-3963.12662835,0.00030759,2]
[377293035,1754323840294,-383.22574546,0.00030759,2]
[377293036,1754323840307,-180.48567864,0.00030759,2]
[377293037,1754323840327,-521.57072868,0.00030759,2]
[377293038,1754323840348,-500.0,0.00030821,5]
[377293039,1754323840370,-500.0,0.00030821,5]
[377293040,1754323840388,-500.0,0.00030821,5]
[377293041,1754323840398,-532.61838289,0.00030821,5]
[377293043,1754323840408,-1000.0,0.00030821,5]
[377293046,1754323840418,-515.95931533,0.00030821,5]
[377293048,1754323840428,-500.0,0.00030821,5]
[377293049,1754323840438,-1000.0,0.00030821,5]
[377293050,1754323840448,-500.0,0.00030821,5]
[377293051,1754323840459,-504.1468384,0.00030821,5]
[377293052,1754323840469,-635.74493946,0.00030821,2]
[377293053,1754323840478,-1000.0,0.00030821,5]
[377293054,1754323840487,-1000.0,0.00030821,5]
[377293055,1754323840497,-520.09512674,0.00030821,5]
[377293056,1754323840507,-150.0,0.00030873,5]
[377293057,1754323840516,-1190.69,0.00030886,30]
[377293058,1754323840525,-2753.76230908,0.000309,23]
[377293059,1754323840535,-458.45,0.000309,4]
[377293060,1754323840544,-200.0,0.000311,120]
[377293061,1754323840554,-200.0,0.000311,120]
[377293062,1754323840563,-1190.69,0.00031117,30]
[377293063,1754323840572,-599.99,0.00031155,6]
[377293064,1754323840582,-405.42879302,0.00031168,5]
[377293065,1754323840591,-1500.0,0.00031168,5]
[377293066,1754323840602,-350.0,0.00031268,5]
[377293067,1754323840611,-1500.0,0.00031268,5]
[377293068,1754323840621,-1190.69,0.00031348,30]
[377293069,1754323840631,-1000.0,0.00031368,5]
[377293070,1754323840641,-1500.0,0.00031368,5]
[377293071,1754323840650,-694.31634394,0.00031368,5]
[377293072,1754323840660,-1500.0,0.00031368,5]
[377293073,1754323840669,-1500.0,0.00031368,5]
[377293074,1754323840678,-300.0,0.00031421,5]
[377293075,1754323840691,-1269.92,0.00031423,3]
[377293076,1754323840701,-634.96,0.00031423,3]
[377293077,1754323840710,-317.48,0.00031423,3]
[377293078,1754323840720,-72724.3904724,0.00031426,2]
[377293079,1754323840729,-14395.958522,0.00031472,2]
[377293080,1754323840739,-500.0,0.00031545,2]
[377293081,1754323840748,-151.0,0.00031545,2]
[377293082,1754323840760,-2030.296672,0.00031545,2]
[377293083,1754323840769,-151.0,0.00031545,2]
[377293084,1754323840779,-151.0,0.00031545,2]
[377293085,1754323840788,-151.0,0.00031545,2]
[377293086,1754323840797,-151.0,0.00031545,2]
[377293087,1754323840807,-151.0,0.00031545,2]
[377293088,1754323840816,-151.0,0.00031545,2]
[377293089,1754323840827,-151.0,0.00031545,2]
[377293090,1754323840998,-151.0,0.00031545,2]
[377293091,1754323841008,-151.0,0.00031545,2]
[377293092,1754323841018,-151.0,0.00031545,2]
[377293093,1754323841028,-151.0,0.00031545,2]
[377293094,1754323841037,-151.0,0.00031545,2]
[377293095,1754323841047,-151.0,0.00031545,2]
[377293096,1754323841056,-151.0,0.00031545,2]
[377293097,1754323841066,-151.0,0.00031545,2]
[377293098,1754323841076,-151.0,0.00031545,2]
[377293099,1754323841085,-151.0,0.00031545,2]
[377293100,1754323841096,-151.0,0.00031545,2]
[377293101,1754323841106,-151.0,0.00031545,2]
[377293102,1754323841115,-151.0,0.00031545,2]
[377293103,1754323841125,-151.0,0.00031545,2]
[377293104,1754323841135,-151.0,0.00031545,2]
[377293105,1754323841145,-300.0,0.00031545,2]
[377293106,1754323841156,-300.0,0.00031545,2]
[377293107,1754323841166,-300.0,0.00031545,2]
[377293108,1754323841176,-300.0,0.00031545,2]
[377293109,1754323841186,-300.0,0.00031545,2]
[377293110,1754323841197,-300.0,0.00031545,2]
[377293111,1754323841206,-300.0,0.00031545,2]
[377293112,1754323841216,-151.0,0.00031545,2]
[377293113,1754323841225,-151.0,0.00031545,2]
[377293114,1754323841235,-300.0,0.00031545,2]
[377293115,1754323841245,-151.0,0.00031545,2]
[377293116,1754323841256,-151.0,0.00031545,2]
[377293117,1754323841265,-300.0,0.00031545,2]
[377293118,1754323841274,-151.0,0.00031545,2]
[377293119,1754323841284,-300.0,0.00031545,2]
[377293120,1754323841293,-151.0,0.00031545,2]
[377293121,1754323841303,-151.0,0.00031545,2]
[377293122,1754323841317,-300.0,0.00031545,2]
[377293123,1754323841328,-151.0,0.00031545,2]
[377293124,1754323841340,-151.0,0.00031545,2]
[377293125,1754323841351,-300.0,0.00031545,2]
[377293126,1754323841361,-151.0,0.00031545,2]
[377293127,1754323841371,-151.0,0.00031545,2]
[377293128,1754323841381,-151.0,0.00031545,2]
[377293129,1754323841392,-151.0,0.00031545,2]
[377293130,1754323841401,-151.0,0.00031545,2]
[377293131,1754323841411,-151.0,0.00031545,2]
[377293132,1754323841421,-151.0,0.00031545,2]
[377293133,1754323841431,-151.0,0.00031545,2]
[377293134,1754323841441,-151.0,0.00031545,2]
[377293135,1754323841450,-1190.69,0.00031579,30]
[377293136,1754323841460,-2105.41764886,0.000316,2]
[377293137,1754323841470,-2183.31810187,0.00031655,2]
[377293138,1754323841479,-500.92565472,0.00031673,5]
[377293139,1754323841489,-501.71491162,0.00031673,5]
[377293140,1754323841499,-500.0,0.00031673,5]
[377293141,1754323841509,-500.0,0.00031673,5]
[377293142,1754323841519,-168.18530873,0.00031673,5]
[377293143,1754323841529,-72724.3904724,0.0003171,2]
[377293144,1754323841539,-2264.10087164,0.0003171,2]
[377293145,1754323841550,-1000.0,0.00031716,5]
[377293146,1754323841560,-4752.52419069,0.0003172,2]
[377293147,1754323841570,-2347.87260389,0.00031765,2]
[377293148,1754323841580,-1190.69,0.0003181,30]
[377293149,1754323841589,-450.0,0.00031816,5]
[377293150,1754323841599,-1161.52183918,0.00031816,5]
[377293151,1754323841609,-461.05335821,0.00031818,30]
[377293152,1754323841619,-2434.74389024,0.0003182,2]
[377293153,1754323841628,-500.0,0.00031873,2]
[377293154,1754323841638,-433.64531922,0.00031875,2]
[377293155,1754323841648,-9345.7792582,0.000319,5]
[377293156,1754323841658,-153.0,0.00031915,2]
[377293157,1754323841667,-153.0,0.00031915,2]
[377293158,1754323841678,-153.0,0.00031915,2]
[377293159,1754323841688,-153.0,0.00031915,2]
[377293160,1754323841698,-2000.0,0.00031916,5]
[377293161,1754323841707,-2000.0,0.00031916,5]
[377293162,1754323841717,-2000.0,0.00031916,5]
[377293163,1754323841727,-153.0,0.00031917,2]
[377293164,1754323841737,-153.0,0.00031917,2]
[377293165,1754323841746,-153.0,0.00031917,2]
[377293166,1754323841758,-153.0,0.00031917,2]
[377293167,1754323841767,-153.0,0.00031917,2]
[377293169,1754323841776,-153.0,0.00031917,2]
[377293171,1754323841787,-153.0,0.00031917,2]
[377293173,1754323841796,-153.0,0.00031917,2]
[377293175,1754323841806,-153.0,0.00031917,2]
[377293176,1754323841815,-153.0,0.00031917,2]
[377293177,1754323841825,-153.0,0.00031917,2]
[377293178,1754323841835,-153.0,0.00031917,2]
[377293179,1754323841844,-153.0,0.00031917,2]
[377293180,1754323841854,-153.0,0.00031917,2]
[377293181,1754323841863,-153.0,0.00031917,2]
[377293182,1754323841873,-153.0,0.00031917,2]
[377293183,1754323841882,-153.0,0.00031917,2]
[377293184,1754323841892,-153.0,0.00031917,2]
[377293185,1754323841902,-153.0,0.00031917,2]
[377293186,1754323841911,-153.0,0.00031917,2]
[377293187,1754323841920,-153.0,0.00031917,2]
[377293188,1754323841930,-153.0,0.00031917,2]
[377293189,1754323841939,-153.0,0.00031917,2]
[377293190,1754323841948,-200.0,0.00031955,120]
[377293191,1754323841958,-160.0,0.00031967,2]
[377293192,1754323841967,-450.0,0.00031968,5]
[377293193,1754323841976,-200.0,0.00032,120]
[377293194,1754323841986,-1532.90298185,0.00032111,2]
[377293195,1754323841995,-797.48283727,0.00032221,5]
[377293196,1754323842005,-547.99064876,0.00032364,5]
[377293197,1754323842016,-5000.0,0.00032365,4]
[377293198,1754323842025,-560.0,0.0003239,2]
[377293199,1754323842035,-841.0,0.00032392,3]
[377293200,1754323842044,-1000.0,0.00032421,2]
[377293201,1754323842053,-1004.72035437,0.00032464,5]
[377293202,1754323842064,-2500.0,0.00032464,5]
[377293203,1754323842077,-2257.00094126,0.00032464,5]
[377293204,1754323842088,-2500.0,0.00032464,5]
[377293205,1754323842098,-15868.0,0.00032501,2]
[377293206,1754323842114,-260.0,0.00032515,2]
[377293207,1754323842124,-300.0,0.00032516,5]
[377293208,1754323842133,-2240.0,0.00032525,3]
[377293209,1754323842143,-231.67098287,0.0003253,3]
[377293210,1754323842152,-215.16777298,0.0003253,3]
[377293211,1754323842162,-250.61592133,0.00032543,2]
[377293212,1754323842171,-153.980537,0.00032633,4]
[377293213,1754323842180,-318.13688,0.000328,120]
[377293214,1754323842190,-200.0,0.000328,120]
[377293215,1754323842199,-14395.958522,0.000328,2]
[377293216,1754323842208,-208.07743518,0.00032866,2]
[377293217,1754323842218,-413.38727614,0.00032873,5]
[377293218,1754323842228,-500.0,0.00032873,5]
[377293219,1754323842237,-501.43627595,0.00032873,5]
[377293220,1754323842246,-501.46278428,0.00032873,5]
[377293221,1754323842256,-150.0,0.00032873,3]
[377293222,1754323842265,-155.0,0.00032875,2]
[377293223,1754323842275,-460.0,0.00032876,2]
[377293224,1754323842285,-460.0,0.00032876,2]
[377293225,1754323842294,-460.0,0.00032876,2]
[377293226,1754323842305,-219.97481065,0.00032876,7]
[377293227,1754323842316,-460.0,0.00032876,2]
[377293228,1754323842326,-460.0,0.00032876,2]
[377293229,1754323842335,-460.0,0.00032876,2]
[377293230,1754323842345,-460.0,0.00032876,2]
[377293231,1754323842355,-460.0,0.00032876,2]
[377293232,1754323842364,-460.0,0.00032876,2]
[377293233,1754323842373,-460.0,0.00032876,2]
[377293234,1754323842383,-460.0,0.00032876,2]
[377293235,1754323842392,-460.0,0.00032876,2]
[377293236,1754323842402,-460.0,0.00032876,2]
[377293237,1754323842412,-487.0822624,0.00032876,2]
[377293238,1754323842421,-500.0,0.00032876,2]
[377293239,1754323842430,-460.0,0.00032876,2]
[377293240,1754323842440,-380.9950265,0.00032876,2]
[377293241,1754323842449,-460.0,0.00032876,2]
[377293242,1754323842458,-460.0,0.00032876,2]
[377293243,1754323842468,-460.0,0.00032876,2]
[377293244,1754323842477,-460.0,0.00032876,2]
[377293245,1754323842486,-557.90616759,0.00032876,2]
[377293246,1754323842496,-460.0,0.00032876,2]
[377293247,1754323842505,-460.0,0.00032876,2]
[377293248,1754323842515,-460.0,0.00032876,2]
[377293249,1754323842524,-460.0,0.00032876,2]
[377293250,1754323842534,-460.0,0.00032876,2]
[377293251,1754323842544,-389.16094194,0.00032876,2]
[377293252,1754323842553,-460.0,0.00032876,2]
[377293253,1754323842562,-460.0,0.00032876,2]
[377293254,1754323842572,-460.0,0.00032876,2]
[377293255,1754323842582,-460.0,0.00032876,2]
[377293256,1754323842591,-460.0,0.00032876,2]
[377293257,1754323842600,-460.58096382,0.00032876,2]
[377293258,1754323842609,-460.0,0.00032876,2]
[377293259,1754323842618,-1512.55,0.00032876,2]
[377293260,1754323842627,-460.0,0.00032876,2]
[377293261,1754323842637,-460.0,0.00032876,2]
[377293262,1754323842647,-460.0,0.00032876,2]
[377293263,1754323842656,-460.0,0.00032876,2]
[377293264,1754323842666,-460.0,0.00032876,2]
[377293265,1754323842675,-460.0,0.00032876,2]
[377293266,1754323842685,-460.0,0.00032876,2]
[377293268,1754323842695,-460.0,0.00032876,2]
[377293270,1754323842705,-460.0,0.00032876,2]
[377293272,1754323842712,-460.0,0.00032876,2]
[377293273,1754323842719,-460.0,0.00032876,2]
[377293275,1754323842729,-462.94558041,0.00032876,2]
[377293277,1754323842739,-460.0,0.00032876,2]
[377293279,1754323842749,-460.0,0.00032876,2]
[377293282,1754323842759,-460.0,0.00032876,2]
[377293284,1754323842769,-460.0,0.00032876,2]
[377293286,1754323842778,-460.0,0.00032876,2]
[377293287,1754323842787,-460.0,0.00032876,2]
[377293289,1754323842797,-461.43081924,0.00032876,2]
[377293291,1754323842807,-500.0795813,0.00032876,2]
[377293294,1754323842817,-460.0,0.00032876,2]
[377293296,1754323842826,-460.0,0.00032876,2]
[377293298,1754323842835,-460.0,0.00032876,2]
[377293299,1754323842844,-460.0,0.00032876,2]
[377293302,1754323842854,-460.0,0.00032876,2]
[377293303,1754323842863,-604.63758341,0.00032876,2]
[377293306,1754323842873,-460.0,0.00032876,2]
[377293307,1754323842883,-460.0,0.00032876,2]
[377293309,1754323842892,-462.36982953,0.00032876,2]
[377293312,1754323842902,-460.0,0.00032876,2]
[377293314,1754323842912,-460.0,0.00032876,2]
[377293316,1754323842922,-460.0,0.00032876,2]
[377293318,1754323842931,-460.0,0.00032876,2]
[377293320,1754323842940,-463.49605169,0.00032876,2]
[377293321,1754323842950,-460.0,0.00032876,2]
[377293323,1754323842959,-460.0,0.00032876,2]
[377293325,1754323842968,-460.0,0.00032876,2]
[377293327,1754323842978,-460.0,0.00032876,2]
[377293329,1754323842987,-460.0,0.00032876,2]
[377293331,1754323842996,-460.0,0.00032876,2]
[377293333,1754323843005,-460.0,0.00032876,2]
[377293335,1754323843015,-418.09116907,0.00032876,2]
[377293337,1754323843024,-460.0,0.00032876,2]